bitfinex-derivatives/quotes_SOLF0:USTF0_20260226
["timestamp","ask_amount","ask_price","bid_price","bid_amount"]
[1772075355649,3.67616793,87.996,87.94,2.97588648]
[1772075356150,3.67616793,87.989,87.94,6.49443918]
[1772075356351,3.67616793,87.989,87.941,3.5185527]
[1772075358750,3.67616793,87.989,87.95,2.97588648]
[1772075358951,10.2284,87.988,87.941,3.5185527]
[1772075359254,2.97588648,87.95,87.888,21.08954192]
[1772075359553,2.97588648,87.95,87.87,2.97588648]
[1772075359554,2.97588648,87.93,87.878,9.7142117]
[1772075359754,2.97588648,87.95,87.891,9.7142117]
[1772075359948,2.97588648,87.96,87.901,9.7142117]
[1772075360149,2.97588648,87.96,87.91,2.97588648]
[1772075360350,2.97588648,87.96,87.911,9.7142117]
[1772075360552,2.97588648,87.96,87.9,2.97588648]
[1772075361355,2.97588648,87.94,87.88,2.97588648]
[1772075362751,2.97588648,87.94,87.881,4.51870252]
[1772075363055,2.97588648,87.94,87.841,11.40645215]
[1772075363056,2.97588648,87.96,87.9,2.97588648]
[1772075363659,10.2334,87.944,87.9,2.97588648]
[1772075364762,10.2321,87.956,87.901,4.54801047]
[1772075365356,10.2321,87.956,87.91,2.97588648]
[1772075367468,10.2308,87.967,87.91,2.97588648]
[1772075367659,34.1,88.01,87.842,193.4708]
[1772075367660,477.2917,87.994,87.856,43.27189939]
[1772075367859,2.97588648,87.9,87.84,2.97588648]
[1772075368065,2.97588648,87.89,87.84,2.97588648]
[1772075368261,2.97588648,87.89,87.83,2.97588648]
[1772075368468,34.1,87.946,87.764,159.5129]
[1772075368469,2.97588648,87.91,87.85,2.97588648]
[1772075368666,2.97588648,87.92,87.86,2.97588648]
[1772075368863,2.97588648,87.91,87.86,2.97588648]
[1772075369470,2.97588648,87.91,87.794,34.1]
[1772075369770,2.97588648,87.91,87.85,2.97588648]
[1772075370265,10.2377,87.908,87.86,2.97588648]
[1772075370664,10.2377,87.908,87.851,34.33661914]
[1772075371668,10.2377,87.908,87.86,37.25815075]
[1772075371869,2.97588648,87.92,87.86,37.25815075]
[1772075372760,10.2365,87.918,87.87,2.97588648]
[1772075372961,2.97588648,87.93,87.871,34.28514759]
[1772075373365,10.2353,87.928,87.871,34.28514759]
[1772075373962,2.97588648,87.95,87.89,2.97588648]
[1772075374370,2.97588648,87.95,87.88,2.97588648]
[1772075374667,2.97588648,87.93,87.871,34.28514759]
[1772075375264,10.2343,87.937,87.88,37.27098479]
[1772075376070,10.2357,87.925,87.88,37.27098479]
[1772075379371,10.2357,87.925,87.88,34.29509831]
[1772075384674,10.2369,87.915,87.88,34.29509831]
[1772075390785,10.238,87.905,87.803,34.1]
[1772075390985,10.238,87.905,87.86,2.98089744]
[1772075391685,10.2368,87.915,87.86,2.98089744]
[1772075391885,10.2368,87.915,87.87,2.98089744]
[1772075392089,10.2368,87.915,87.86,2.98089744]
[1772075392280,10.238,87.905,87.86,2.98089744]
[1772075392479,2.98089744,87.91,87.85,2.98089744]
[1772075392685,2.98089744,87.9,87.84,2.98089744]
[1772075392893,2.98089744,87.9,87.841,24.2890807]
[1772075393489,159.1917,87.942,87.841,24.2890807]
[1772075393490,2.98089744,87.89,87.841,24.2890807]
[1772075394882,10.2399,87.889,87.841,24.2890807]
[1772075395291,2.98089744,87.91,87.851,24.29352972]
[1772075396983,10.2398,87.89,87.851,24.29352972]
[1772075397386,2.98089744,87.92,87.861,24.32198321]
[1772075397586,2.98089744,87.93,87.871,24.32198321]
[1772075398991,10.2367,87.916,87.871,24.32198321]
[1772075399192,2.98089744,87.92,87.871,24.32198321]
[1772075399792,10.2378,87.907,87.871,24.32198321]
[1772075402487,10.2388,87.898,87.871,8.321e-05]
[1772075402796,10.2388,87.898,87.86,2.98089744]
[1772075402997,10.2399,87.889,87.85,2.98089744]
[1772075403197,10.2399,87.889,87.84,2.98089744]
[1772075404498,10.2399,87.889,87.841,12.20766809]
[1772075405000,10.2399,87.889,87.84,2.98089744]
[1772075405001,10.2388,87.898,87.851,12.18370318]
[1772075405189,10.2388,87.898,87.861,12.18370318]
[1772075407397,10.2398,87.89,87.848,12.18659968]
[1772075408403,10.2398,87.89,87.794,28.08654259]
[1772075408404,2.98089744,87.92,87.861,12.18659968]
[1772075408603,9.30899071,87.919,87.861,12.18659968]
[1772075408797,9.30899071,87.918,87.861,12.18659968]
[1772075408997,9.30899071,87.917,87.861,12.18659968]
[1772075409196,10.2375,87.91,87.861,12.18659968]
[1772075409403,2.98089744,87.93,87.871,12.20048424]
[1772075409700,309.69037628,87.961,87.871,12.20048424]
[1772075409701,2.98089744,87.92,87.871,12.20048424]
[1772075410002,2.98089744,87.91,87.85,2.98089744]
[1772075410196,9.31010624,87.909,87.85,2.98089744]
[1772075410394,9.31010624,87.908,87.85,2.98089744]
[1772075410597,9.31010624,87.907,87.85,2.98089744]
[1772075410900,10.2386,87.9,87.85,2.98089744]
[1772075411896,10.2386,87.9,87.851,6.10960618]
[1772075412803,2.98089744,87.91,87.851,6.10960618]
[1772075412804,10.2392,87.895,87.851,6.10960618]
[1772075415496,10.2381,87.904,87.851,6.10960618]
[1772075416009,10.2369,87.914,87.861,6.11699567]
[1772075416208,9.32467597,87.913,87.861,6.11699567]
[1772075416506,2.98089744,87.91,87.861,6.11699567]
[1772075416706,9.32467597,87.909,87.861,6.11699567]
[1772075416902,10.2394,87.893,87.85,2.98089744]
[1772075418098,10.2382,87.903,87.85,2.98089744]
[1772075418909,10.2382,87.903,87.851,3.7658869]
[1772075421906,10.2382,87.903,87.854,3.7658869]
[1772075422508,10.2382,87.903,87.814,28.08654259]
[1772075422509,10.2371,87.913,87.861,3.7658869]
[1772075423200,11.83090061,87.913,87.861,3.7658869]
[1772075423398,10.2375,87.909,87.861,3.7658869]
[1772075427609,1.60287811,87.906,87.861,3.7658869]
[1772075429013,10.2383,87.903,87.861,3.7658869]
[1772075430005,1.60287811,87.906,87.861,3.7658869]
[1772075430216,1.57302676,87.92,87.861,3.7658869]
[1772075430414,9.35320986,87.919,87.861,3.7658869]
[1772075430614,9.35320986,87.918,87.861,3.7658869]
[1772075430814,9.35320986,87.917,87.861,3.7658869]
[1772075431113,9.35320986,87.916,87.861,3.7658869]
[1772075431318,10.2365,87.918,87.863,3.70377479]
[1772075431515,9.3530063,87.917,87.863,3.70377479]
[1772075431815,9.3530063,87.916,87.863,3.70377479]
[1772075432017,10.2365,87.918,87.863,3.70377479]
[1772075432218,10.237,87.914,87.863,3.70377479]
[1772075432418,10.237,87.914,87.871,3.70377479]
[1772075434818,10.2379,87.906,87.871,3.70377479]
[1772075435121,1.50140468,87.904,87.855,3.78139797]
[1772075436319,1.50140468,87.904,87.857,3.78139797]
[1772075437116,1.50140468,87.904,87.86,2.98089744]
[1772075437317,1.50140468,87.904,87.861,3.78139797]
[1772075438922,11.73950468,87.904,87.861,3.78139797]
[1772075443322,1.54935047,87.922,87.874,3.78139797]
[1772075443623,1.54935047,87.92,87.874,3.78139797]
[1772075443813,10.63596187,87.946,87.874,3.78139797]
[1772075443814,1.54935047,87.918,87.874,3.78139797]
[1772075444919,1.44415669,87.928,87.88,2.98089744]
[1772075445119,1.44415669,87.928,87.881,3.78139797]
[1772075445120,9.35541973,87.927,87.881,3.78139797]
[1772075445423,10.63596187,87.956,87.825,159.403]
[1772075445424,1.44415669,87.946,87.9,2.98089744]
[1772075445620,10.7956271,87.945,87.9,2.98089744]
[1772075445821,10.7956271,87.944,87.9,2.98089744]
[1772075446127,9.35147041,87.943,87.9,2.98089744]
[1772075446424,9.35147041,87.942,87.891,3.78139797]
[1772075446622,9.35147041,87.941,87.891,3.78139797]
[1772075446919,9.35147041,87.94,87.891,3.78139797]
[1772075447124,9.35147041,87.939,87.9,2.98089744]
[1772075447325,10.2338,87.941,87.901,3.78139797]
[1772075447526,9.34455558,87.94,87.901,3.78139797]
[1772075447727,10.2338,87.941,87.901,3.78139797]
[1772075447927,9.34455547,87.94,87.901,3.78139797]
[1772075448134,10.2338,87.941,87.901,3.78139797]
[1772075448330,9.34240413,87.94,87.901,3.78139797]
[1772075448627,10.2338,87.941,87.901,3.78139797]
[1772075448926,9.34240413,87.94,87.901,3.78139797]
[1772075449132,10.2338,87.941,87.901,3.78139797]
[1772075449823,1.32752874,87.94,87.901,3.78139797]
[1772075455530,10.2327,87.951,87.901,3.78139797]
[1772075455728,1.36705947,87.949,87.901,3.78139797]
[1772075456334,1.36543625,87.944,87.901,3.78139797]
[1772075458033,1.38185135,87.942,87.901,3.78139797]
[1772075459733,11.60273701,87.94,87.901,3.78139797]
[1772075460038,1.36873701,87.939,87.901,3.78139797]
[1772075461533,9.32872986,87.958,87.901,3.78139797]
[1772075461731,34.1,87.993,87.848,54.5891]
[1772075461732,1.33366548,87.979,87.921,3.63625161]
[1772075461947,10.2306,87.969,87.921,3.63625161]
[1772075462242,9.29475739,87.976,87.921,3.63625161]
[1772075462434,9.29475739,87.975,87.921,3.63625161]
[1772075462640,9.29475739,87.974,87.921,3.63625161]
[1772075462836,9.29475739,87.973,87.921,3.63625161]
[1772075463142,9.29475739,87.976,87.921,3.63625161]
[1772075463342,1.33366548,87.977,87.921,3.63625161]
[1772075463539,9.29475739,87.988,87.931,3.63625161]
[1772075463744,1.30577919,87.989,87.941,3.63625161]
[1772075464135,10.2283,87.988,87.941,3.63625161]
[1772075467647,1.27014314,87.98,87.93,2.9790072]
[1772075467945,1.27014314,87.98,87.931,3.63625161]
[1772075468742,1.27014314,87.98,87.94,2.9790072]
[1772075469243,1.39331525,87.993,87.941,3.63625161]
[1772075470850,1.32216924,87.99,87.941,3.63625161]
[1772075472050,10.2285,87.986,87.941,3.63625161]
[1772075475647,10.2274,87.996,87.941,3.63625161]
[1772075475848,1.31785423,87.995,87.941,3.63625161]
[1772075476954,1.30982204,87.992,87.941,3.63625161]
[1772075477556,1.30982204,87.992,87.951,3.63625161]
[1772075477754,2.9790072,88.01,87.951,3.63625161]
[1772075477952,1.30982204,88.016,87.961,3.63625161]
[1772075478152,1.30982204,88.009,87.961,3.63625161]
[1772075478957,10.2267,88.003,87.961,3.63625161]
[1772075480850,1.30982204,88.009,87.961,3.63625161]
[1772075481761,10.2249,88.018,87.961,3.63625161]
[1772075482156,10.2249,88.018,87.971,3.63625161]
[1772075482558,1.35612349,88.023,87.971,3.63625161]
[1772075482759,1.35612349,88.036,87.981,3.63625161]
[1772075483964,1.35514862,88.032,87.981,3.63625161]
[1772075485163,1.35514862,88.032,87.982,3.63625161]
[1772075485362,1.35514862,88.032,87.981,10.2291]
[1772075485363,1.35514862,88.032,87.991,3.63625161]
[1772075485766,10.222,88.043,87.991,3.63625161]
[1772075486356,4.37424059,88.04,87.991,3.63625161]
[1772075486563,1.39523339,88.029,87.977,3.56944833]
[1772075487964,1.4021966,88.028,87.977,3.56944833]
[1772075488660,1.4021966,88.028,87.98,2.9790072]
[1772075488863,1.4021966,88.028,87.981,3.56944833]
[1772075489360,11.6245966,88.039,87.991,3.56944833]
[1772075489560,1.4021966,88.038,87.991,3.56944833]
[1772075491662,17.87482071,88.079,87.991,3.56944833]
[1772075491663,1.41399702,88.036,87.991,3.56944833]
[1772075494681,1.41191175,88.025,87.971,3.55842875]
[1772075496776,1.42246935,88.019,87.971,3.55842875]
[1772075499075,1.42246935,88.019,87.973,10.23]
[1772075499377,1.42279767,88.031,87.981,3.55842875]
[1772075502081,1.40777071,88.027,87.981,3.55842875]
[1772075502875,10.2243,88.023,87.981,3.55842875]
[1772075503078,11.63207071,88.023,87.981,3.55842875]
[1772075503271,2.9790072,88.03,87.97,2.9790072]
[1772075503272,1.40777071,88.022,87.97,6.53743595]
[1772075503474,34.1,88.064,87.97,3.55842875]
[1772075503475,1.40777071,88.009,87.97,3.55842875]
[1772075503675,1.40777071,88.009,87.951,3.55842875]
[1772075504977,1.38615717,88.005,87.951,3.55842875]
[1772075505676,1.38615717,88.003,87.951,3.55842875]
[1772075505871,1.40433324,87.999,87.951,3.55842875]
[1772075506874,10.2277,87.994,87.951,3.55842875]
[1772075507878,11.64003291,88.015,87.961,3.55842875]
[1772075508078,1.41473291,88.014,87.961,3.55842875]
[1772075508880,10.2256,88.012,87.971,3.55842875]
[1772075510579,1.41473291,88.014,87.971,3.55842875]
[1772075513080,10.2244,88.022,87.971,3.55842875]
[1772075513477,10.2244,88.022,87.981,3.55842875]
[1772075513682,10.2233,88.032,87.991,3.55842875]
[1772075514977,11.53452896,88.032,87.991,3.55842875]
[1772075517584,1.30166629,88.029,87.991,3.55842875]
[1772075517780,11.52536629,88.028,87.991,3.55842875]
[1772075518183,1.30166629,88.027,87.991,3.55842875]
[1772075518589,1.30166629,88.025,87.97,2.97419471]
[1772075518789,1.30166629,88.025,87.971,3.81699806]
[1772075520888,1.33598395,88.02,87.971,3.81699806]
[1772075521081,1.33598395,88.009,87.958,3.81699806]
[1772075521591,1.33598395,87.999,87.958,3.81699806]
[1772075521792,1.3376645,88.014,87.961,3.81699806]
[1772075522490,2.97419471,88.01,87.961,3.81699806]
[1772075523290,4.31185921,88.01,87.961,3.81699806]
[1772075524988,10.2259,88.009,87.961,3.81699806]
[1772075525194,1.33430601,88.007,87.961,3.81699806]
[1772075525493,1.33430601,87.999,87.948,3.81699806]
[1772075525693,2.97419471,87.99,87.948,3.81699806]
[1772075525893,4.31372367,87.99,87.948,3.81699806]
[1772075526795,1.33952896,87.987,87.948,3.81699806]
[1772075534102,11.62123693,87.999,87.948,3.81699806]
[1772075534301,1.39413693,87.998,87.948,3.81699806]
[1772075539701,1.37654845,88.023,87.961,3.81699806]
[1772075539906,1.37654845,88.009,87.961,3.81699806]
[1772075540109,1.37654845,87.999,87.961,3.81699806]
[1772075541001,1.37654845,87.998,87.961,3.81699806]
[1772075541706,1.37654845,87.998,87.9,20.4769]
[1772075541707,1.3329372,87.989,87.949,3.81699806]
[1772075542910,1.3329372,87.983,87.931,3.81699806]
[1772075544906,1.3329372,87.983,87.933,3.81699806]
[1772075546009,1.3329372,87.983,87.935,3.61126272]
[1772075546210,1.3329372,87.983,87.934,10.2346]
[1772075546211,2.97419471,87.99,87.941,3.61126272]
[1772075546812,10.2284,87.988,87.941,3.61126272]
[1772075547111,1.19720624,87.987,87.941,3.61126272]
[1772075552308,10.2286,87.986,87.941,3.61126272]
[1772075554223,10.2296,87.977,87.941,3.61126272]
[1772075558320,11.45355363,87.986,87.941,3.61126272]
[1772075559421,10.2291,87.982,87.941,3.61126272]
[1772075560216,11.47207078,87.982,87.941,3.61126272]
[1772075562218,10.2294,87.979,87.941,3.61126272]
[1772075562523,1.25940051,87.978,87.941,3.61126272]
[1772075564027,11.48477313,87.975,87.941,3.61126272]
[1772075565331,1.25497313,87.974,87.941,3.61126272]
[1772075569324,1.25497313,87.974,87.931,3.56037971]
[1772075570332,1.25847293,87.962,87.919,3.56037971]
[1772075572022,10.2319,87.958,87.919,3.56037971]
[1772075572224,4.24574117,87.98,87.931,3.56037971]
[1772075572528,1.26870911,87.978,87.931,3.56037971]
[1772075572729,1.26870911,87.972,87.931,3.56037971]
[1772075575841,10.2304,87.971,87.931,3.56037971]
[1772075578137,1.2100975,87.97,87.931,3.56037971]
[1772075578435,1.2100975,87.968,87.931,3.56037971]
[1772075578832,1.2100975,87.966,87.931,3.56037971]
[1772075579031,10.59513879,87.965,87.931,3.56037971]
[1772075579233,1.2100975,87.965,87.931,3.56037971]
[1772075579436,10.63751428,87.964,87.931,3.56037971]
[1772075579643,1.2100975,87.964,87.931,3.56037971]
[1772075580042,11.49818851,87.963,87.931,3.56037971]
[1772075580839,1.26688851,87.963,87.931,3.56037971]
[1772075582134,1.26856415,87.977,87.931,3.56037971]
[1772075582335,9.42704668,87.976,87.931,3.56037971]
[1772075582536,9.42704668,87.975,87.931,3.56037971]
[1772075582745,1.26856415,87.973,87.931,3.56037971]
[1772075585148,10.2292,87.981,87.931,3.56037971]
[1772075585452,34.1,88.009,87.873,20.4832]
[1772075585453,1.26250201,87.997,87.951,3.67815528]
[1772075585653,9.42601704,87.996,87.951,3.67815528]
[1772075585951,9.42601704,87.995,87.951,3.67815528]
[1772075586251,9.42601704,87.994,87.951,3.67815528]
[1772075586452,9.42636591,87.993,87.951,3.67815528]
[1772075586652,1.26250201,87.997,87.951,3.67815528]
[1772075586847,9.42636591,87.996,87.951,3.67815528]
[1772075587152,1.26250201,87.997,87.951,3.67815528]
[1772075587153,9.42636591,87.995,87.951,3.67815528]
[1772075587450,9.42636591,87.994,87.951,3.67815528]
[1772075587651,9.42636591,87.993,87.951,3.67815528]
[1772075587950,1.26250201,87.997,87.951,3.67815528]
[1772075588147,9.42594429,87.996,87.951,3.67815528]
[1772075588453,10.65435368,87.995,87.951,3.67815528]
[1772075588646,10.2268,88.001,87.951,3.67815528]
[1772075588647,10.65435368,87.994,87.951,3.67815528]
[1772075588848,9.42594429,87.993,87.951,3.67815528]
[1772075589049,10.2268,88.001,87.951,3.67815528]
[1772075589244,9.42537207,88.0,87.951,3.67815528]
[1772075589447,9.42537207,87.999,87.951,3.67815528]
[1772075589644,9.42537207,87.998,87.951,3.67815528]
[1772075589849,9.42537207,87.997,87.951,3.67815528]
[1772075590046,9.42537207,87.996,87.951,3.67815528]
[1772075590244,9.42537207,87.995,87.951,3.67815528]
[1772075590444,9.42537207,87.994,87.951,3.67815528]
[1772075590650,1.23751114,87.998,87.951,3.67815528]
[1772075590844,9.424518,87.997,87.951,3.67815528]
[1772075591053,1.23751114,87.998,87.951,3.67815528]
[1772075591054,9.424518,87.996,87.951,3.67815528]
[1772075591256,9.424518,87.995,87.951,3.67815528]
[1772075591455,9.424518,87.994,87.951,3.67815528]
[1772075591652,1.23751114,87.998,87.951,3.67815528]
[1772075591955,1.2371099,87.993,87.951,3.67815528]
[1772075592548,1.2371099,87.991,87.951,3.67815528]
[1772075592954,10.2281,87.99,87.951,3.67815528]
[1772075594056,11.4707309,87.99,87.951,3.67815528]
[1772075596253,1.25588315,87.989,87.951,3.67815528]
[1772075598454,10.2281,87.99,87.951,3.67815528]
[1772075604560,11.43460616,87.99,87.951,3.67815528]
[1772075605163,1.20650616,87.989,87.951,3.67815528]
[1772075605559,1.20650616,87.986,87.939,3.67815528]
[1772075605765,1.21228833,87.979,87.928,3.67815528]
[1772075605967,1.21522844,87.977,87.928,3.67815528]
[1772075606168,1.21522844,87.959,87.911,3.62605069]
[1772075607367,1.21541147,87.957,87.911,3.62605069]
[1772075608867,1.23332754,87.955,87.911,3.62605069]
[1772075609869,10.2326,87.952,87.911,3.62605069]
[1772075610063,9.41964398,87.959,87.911,3.62605069]
[1772075610064,1.10102419,87.951,87.911,3.62605069]
[1772075610369,1.10102419,87.949,87.9,2.97703206]
[1772075611268,1.10102419,87.949,87.898,3.62605069]
[1772075611667,1.10114296,87.939,87.898,3.62605069]
[1772075611970,1.10114296,87.919,87.874,3.62605069]
[1772075612171,10.2358,87.924,87.881,3.62605069]
[1772075612670,1.10307843,87.92,87.881,3.62605069]
[1772075612870,1.10307843,87.92,87.871,3.85610817]
[1772075613971,10.2366,87.917,87.871,3.85610817]
[1772075614765,10.2354,87.928,87.881,3.85610817]
[1772075615066,0.99643396,87.927,87.881,3.85610817]
[1772075616263,0.99221116,87.941,87.891,3.85610817]
[1772075617567,10.2345,87.935,87.88,2.97703206]
[1772075617768,0.96558131,87.919,87.876,3.85610817]
[1772075620561,0.96558131,87.919,87.881,3.85610817]
[1772075621169,10.2352,87.929,87.881,3.85610817]
[1772075621468,0.96952186,87.939,87.891,3.85610817]
[1772075622972,10.2344,87.936,87.891,3.85610817]
[1772075625770,0.99611294,87.951,87.901,3.85610817]
[1772075625969,0.99611294,87.949,87.901,3.85610817]
[1772075626869,0.99611294,87.939,87.901,3.85610817]
[1772075627862,11.24133959,87.934,87.881,3.85610817]
[1772075628074,1.00673959,87.933,87.881,3.85610817]
[1772075628574,1.00673959,87.931,87.881,3.85610817]
[1772075630872,10.2349,87.932,87.891,3.85610817]
[1772075631175,1.00346816,87.942,87.891,3.85610817]
[1772075631876,10.2339,87.941,87.891,3.85610817]
[1772075637381,1.00346816,87.942,87.891,3.85610817]
[1772075638977,10.2338,87.941,87.893,3.851461]
[1772075640881,10.2344,87.937,87.893,3.851461]
[1772075643891,10.2346,87.934,87.893,3.851461]
[1772075646486,11.25914577,87.934,87.893,3.851461]
[1772075648797,1.02467809,87.933,87.893,3.851461]
[1772075650200,10.2335,87.944,87.901,3.851461]
[1772075650499,1.02760499,87.948,87.901,3.851461]
[1772075650898,1.02760499,87.948,87.91,6.83159427]
[1772075651199,10.2323,87.954,87.911,3.851461]
[1772075651398,9.48648373,87.953,87.911,3.851461]
[1772075651596,10.2323,87.954,87.911,3.851461]
[1772075651795,11.21045388,87.954,87.911,3.851461]
[1772075653898,0.97815388,87.954,87.911,3.851461]
[1772075654693,9.48648373,87.96,87.911,3.851461]
[1772075654900,11.20311951,87.974,87.931,3.851461]
[1772075655100,0.97301951,87.973,87.931,3.851461]
[1772075655501,0.97301951,87.984,87.941,3.851461]
[1772075655802,0.97301951,87.983,87.941,3.851461]
[1772075658994,1.07539588,87.995,87.941,3.851461]
[1772075659502,1.07539588,87.984,87.941,3.851461]
[1772075659701,1.07539588,87.984,87.873,34.1]
[1772075659702,1.07539588,87.979,87.929,3.851461]
[1772075660798,1.07558932,87.968,87.918,3.851461]
[1772075661903,1.11445637,87.966,87.918,3.851461]
[1772075662897,1.11445637,87.963,87.918,3.851461]
[1772075664005,1.11999764,87.96,87.918,3.851461]
[1772075664208,1.11999764,88.0,87.92,2.98013327]
[1772075664404,1.11999764,87.979,87.921,3.851461]
[1772075664706,2.98013327,87.97,87.921,3.851461]
[1772075664902,1.11999764,87.969,87.921,3.851461]
[1772075665699,1.1137615,87.966,87.921,3.851461]
[1772075666912,1.11388331,87.963,87.921,3.851461]
[1772075669218,1.10458084,87.974,87.921,3.851461]
[1772075669514,1.10458084,87.989,87.931,3.55997829]
[1772075672015,11.28000384,87.988,87.933,3.55997829]
[1772075673007,1.04991734,87.987,87.933,3.55997829]
[1772075674415,11.29746646,87.986,87.933,3.55997829]
[1772075674719,2.98013327,87.99,87.933,3.55997829]
[1772075674720,1.06886646,87.985,87.933,3.55997829]
[1772075676016,2.98013327,87.99,87.933,3.55997829]
[1772075676017,11.29878676,87.984,87.933,3.55997829]
[1772075676222,1.06998676,87.995,87.941,3.6120237]
[1772075677922,10.2277,87.993,87.941,3.6120237]
[1772075678622,1.0750216,87.989,87.941,3.6120237]
[1772075679926,1.07631473,87.987,87.941,3.6120237]
[1772075681720,11.30501473,87.985,87.941,3.6120237]
[1772075681915,1.07542109,87.984,87.941,3.6120237]
[1772075687125,1.08964193,87.979,87.92,2.98013327]
[1772075687324,1.08964193,87.969,87.916,3.6120237]
[1772075687830,1.08964193,87.969,87.921,3.6120237]
[1772075689029,1.0887954,87.979,87.931,3.6120237]
[1772075689325,1.0887954,87.969,87.91,2.98013327]
[1772075689526,1.0887954,87.969,87.911,3.6120237]
[1772075690526,1.09043882,87.949,87.911,3.6120237]
[1772075690728,1.09043882,87.939,87.891,3.6120237]
[1772075692030,10.2345,87.935,87.891,3.6120237]
[1772075697841,10.2333,87.946,87.891,3.6120237]
[1772075698036,10.2333,87.946,87.901,3.76606122]
[1772075700040,11.40406564,87.946,87.901,3.76606122]
[1772075700936,1.17076564,87.945,87.901,3.76606122]
[1772075701740,1.17076564,87.941,87.901,3.76606122]
[1772075702441,11.40887573,87.94,87.901,3.76606122]
[1772075702641,1.17497573,87.94,87.901,3.76606122]
[1772075709446,1.16048173,87.937,87.901,3.76606122]
[1772075709641,1.16048173,87.937,87.792,637.8472]
[1772075709642,1.16048173,87.929,87.881,3.76606122]
[1772075709838,2.98002251,87.92,87.881,3.76606122]
[1772075710140,1.16048173,87.929,87.831,34.1]
[1772075710141,2.98002251,87.91,87.869,3.76606122]
[1772075710443,2.98002251,87.91,87.792,334.462]
[1772075710444,1.16105317,87.899,87.854,3.76606122]
[1772075711046,2.98002251,87.92,87.861,3.76606122]
[1772075711340,1.16105317,87.919,87.861,3.76606122]
[1772075711846,2.98002251,87.91,87.861,3.76606122]
[1772075712644,10.2365,87.918,87.861,3.76606122]
[1772075713742,1.22903414,87.918,87.861,3.76606122]
[1772075713947,1.22903414,87.908,87.861,3.76606122]
[1772075715039,11.46683414,87.907,87.861,3.76606122]
[1772075715239,2.98002251,87.91,87.861,3.76606122]
[1772075716048,1.21657375,87.917,87.861,3.76606122]
[1772075716348,1.21657375,87.917,87.863,3.76606122]
[1772075716548,1.21657375,87.915,87.863,3.76606122]
[1772075717455,1.21657375,87.909,87.863,3.76606122]
[1772075718847,10.2378,87.907,87.863,3.76606122]
[1772075720651,1.22494571,87.907,87.863,3.76606122]
[1772075720859,10.2366,87.918,87.87,2.98002251]
[1772075721153,10.2366,87.918,87.871,3.76606122]
[1772075721359,11.46154571,87.918,87.871,3.76606122]
[1772075721560,1.22494571,87.917,87.871,3.76606122]
[1772075722056,1.22554154,87.913,87.871,3.76606122]
[1772075724861,11.4480246,87.912,87.871,3.76606122]
[1772075725262,1.2108246,87.911,87.871,3.76606122]
[1772075727460,10.2366,87.918,87.871,3.76606122]
[1772075727666,1.20972821,87.924,87.871,3.76606122]
[1772075728067,1.21037703,87.919,87.871,3.76606122]
[1772075729863,10.2367,87.916,87.871,3.76606122]
[1772075730968,1.21037703,87.919,87.871,3.76606122]
[1772075731169,10.2355,87.926,87.871,3.76606122]
[1772075731670,11.44241408,87.923,87.871,3.76606122]
[1772075736466,1.19666878,87.936,87.891,3.6042441]
[1772075736670,1.19666878,87.949,87.901,3.6042441]
[1772075737670,1.19666878,87.949,87.911,3.6042441]
[1772075738562,1.18587123,87.961,87.92,2.98002251]
[1772075738762,1.18587123,87.961,87.849,34.1]
[1772075738763,1.18587123,87.939,87.89,2.98002251]
[1772075738962,1.18587123,87.939,87.885,3.6042441]
[1772075739168,1.18587123,87.936,87.885,3.6042441]
[1772075739367,1.18587123,87.936,87.835,36.08014168]
[1772075739368,1.18587123,87.936,87.891,3.6042441]
[1772075740467,10.2331,87.947,87.891,3.6042441]
[1772075740664,1.19367398,87.946,87.891,3.6042441]
[1772075741874,1.17019302,87.943,87.891,3.6042441]
[1772075742368,17.83217009,87.964,87.891,3.6042441]
[1772075742569,17.83217009,87.964,87.882,10.2405]
[1772075742570,1.17019302,87.982,87.94,2.98002251]
[1772075742772,1.17019302,87.982,87.931,3.6042441]
[1772075742970,34.1,87.998,87.867,34.1]
[1772075742971,1.17019302,87.979,87.92,2.98002251]
[1772075743271,1.17019302,87.968,87.921,3.6042441]
[1772075743869,1.14786297,87.964,87.921,3.6042441]
[1772075744871,10.2315,87.961,87.921,3.6042441]
[1772075746972,1.14786297,87.964,87.921,3.6042441]
[1772075748777,10.229,87.982,87.931,3.6042441]
[1772075748973,10.229,87.982,87.941,3.6042441]
[1772075749480,11.0691101,87.982,87.941,3.6042441]
[1772075752976,0.88664065,87.977,87.928,3.6042441]
[1772075753976,0.88674606,87.969,87.928,3.6042441]
[1772075754881,10.2305,87.97,87.928,3.6042441]
[1772075755783,10.2305,87.97,87.93,2.97667709]
[1772075756883,10.2305,87.97,87.867,175.0]
[1772075756884,0.87012929,87.963,87.915,3.70015974]
[1772075757088,0.87012929,87.963,87.921,3.70015974]
[1772075758484,0.90335936,87.952,87.91,2.97667709]
[1772075759575,0.90335936,87.952,87.91,6.67683683]
[1772075759877,0.90335936,87.952,87.911,3.70015974]